[Event "*** Titled Tuesday Blitz"]
[Site "Chess.com"]
[Date "2018.04.03"]
[Round "3"]
[White "anon102030"]
[Black "amatatanav"]
[Result "1-0"]
[WhiteElo "2724"]
[BlackElo "2423"]
[TimeControl "180+2"]
[EndTime "13:40:58 PDT"]
[Termination "anon102030 won on time"]

1. e4 {[%clk 0:03:00.4]} 1... c5 {[%clk 0:03:00.8]} 2. Nc3 {[%clk 0:03:01.7]}
2... Nc6 {[%clk 0:03:01.6]} 3. g3 {[%clk 0:03:03.6]} 3... g6 {[%clk 0:03:02.5]}
4. Bg2 {[%clk 0:03:05.5]} 4... Bg7 {[%clk 0:03:04.1]} 5. d3 {[%clk 0:03:07.4]}
5... d6 {[%clk 0:02:52.4]} 6. Be3 {[%clk 0:03:09.3]} 6... Nf6 {[%clk 0:02:52.8]}
7. h3 {[%clk 0:03:10.3]} 7... O-O {[%clk 0:02:52]} 8. f4 {[%clk 0:03:10.8]} 8...
Nd4 {[%clk 0:02:34.6]} 9. Nf3 {[%clk 0:03:11.6]} 9... Nd7 {[%clk 0:02:31.3]} 10.
O-O {[%clk 0:03:12.1]} 10... Rb8 {[%clk 0:02:31.5]} 11. Qd2 {[%clk 0:03:12.6]}
11... b5 {[%clk 0:02:28.6]} 12. a3 {[%clk 0:03:12.6]} 12... Nxf3+ {[%clk
0:02:01.1]} 13. Bxf3 {[%clk 0:03:11.6]} 13... Nb6 {[%clk 0:02:00.2]} 14. Nxb5
{[%clk 0:03:06.2]} 14... Bxh3 {[%clk 0:01:59.7]} 15. Rfe1 {[%clk 0:02:58.6]}
15... Bxb2 {[%clk 0:01:35.8]} 16. Rab1 {[%clk 0:02:58.9]} 16... Na4 {[%clk
0:01:37.3]} 17. c4 {[%clk 0:02:03.2]} 17... a6 {[%clk 0:01:37.6]} 18. Rxb2
{[%clk 0:01:36.9]} 18... Nxb2 {[%clk 0:01:35]} 19. Nc3 {[%clk 0:01:34.1]} 19...
Qa5 {[%clk 0:01:31.6]} 20. Rb1 {[%clk 0:01:33.3]} 20... Qxa3 {[%clk 0:01:06.9]}
21. f5 {[%clk 0:01:32.6]} 21... Rb3 {[%clk 0:01:04]} 22. Nd5 {[%clk 0:01:25.2]}
22... Nxc4 {[%clk 0:00:45.4]} 23. Rxb3 {[%clk 0:01:24.8]} 23... Nxd2 {[%clk
0:00:41]} 24. Rxa3 {[%clk 0:01:25.7]} 24... Nxf3+ {[%clk 0:00:41.8]} 25. Kf2
{[%clk 0:01:27.1]} 25... Ne5 {[%clk 0:00:36.9]} 26. Nxe7+ {[%clk 0:01:26.7]}
26... Kg7 {[%clk 0:00:37.6]} 27. Bf4 {[%clk 0:01:19.5]} 27... gxf5 {[%clk
0:00:31.1]} 28. exf5 {[%clk 0:01:17.7]} 28... Kf6 {[%clk 0:00:22.4]} 29. Nd5+
{[%clk 0:01:15]} 29... Kxf5 {[%clk 0:00:22.4]} 30. Ke3 {[%clk 0:01:00.2]} 30...
Ng4+ {[%clk 0:00:16.7]} 31. Kd2 {[%clk 0:01:00.4]} 31... Nf6 {[%clk 0:00:12.1]}
32. Ne3+ {[%clk 0:00:50.9]} 32... Ke6 {[%clk 0:00:13]} 33. Rxa6 {[%clk
0:00:52.8]} 33... Rd8 {[%clk 0:00:11.2]} 34. Nc4 {[%clk 0:00:53.7]} 34... Ne8
{[%clk 0:00:11.9]} 35. Be3 {[%clk 0:00:51.4]} 35... Kd5 {[%clk 0:00:11.7]} 36.
Kc3 {[%clk 0:00:47.6]} 36... h5 {[%clk 0:00:10.4]} 37. Bf4 {[%clk 0:00:48.3]}
37... Bg4 {[%clk 0:00:10.2]} 38. Ra7 {[%clk 0:00:48.4]} 38... Rd7 {[%clk
0:00:10.7]} 39. Nb6+ {[%clk 0:00:48.6]} 39... Kc6 {[%clk 0:00:11.8]} 40. Nxd7
{[%clk 0:00:50.5]} 40... Bxd7 {[%clk 0:00:13]} 41. Ra6+ {[%clk 0:00:51.1]} 41...
Kd5 {[%clk 0:00:13.9]} 42. Ra2 {[%clk 0:00:53]} 42... Nc7 {[%clk 0:00:14]} 43.
Rh2 {[%clk 0:00:46.9]} 43... Nb5+ {[%clk 0:00:14.4]} 44. Kd2 {[%clk 0:00:48.3]}
44... Bg4 {[%clk 0:00:15.3]} 45. Ke3 {[%clk 0:00:47.5]} 45... Nd4 {[%clk
0:00:16.5]} 46. Ra2 {[%clk 0:00:48.2]} 46... Nf5+ {[%clk 0:00:17.5]} 47. Kd2
{[%clk 0:00:47.3]} 47... h4 {[%clk 0:00:17.7]} 48. gxh4 {[%clk 0:00:48.2]} 48...
Nxh4 {[%clk 0:00:19.6]} 49. Ra6 {[%clk 0:00:46.9]} 49... Nf5 {[%clk 0:00:19.6]}
50. Kc3 {[%clk 0:00:47.7]} 50... Bh5 {[%clk 0:00:18.7]} 51. Ra1 {[%clk
0:00:44.1]} 51... Bg6 {[%clk 0:00:19.9]} 52. Ra6 {[%clk 0:00:42.9]} 52... Bh5
{[%clk 0:00:20]} 53. Rb6 {[%clk 0:00:43.6]} 53... Bg6 {[%clk 0:00:20.6]} 54. Bh2
{[%clk 0:00:45.5]} 54... Bh5 {[%clk 0:00:18.9]} 55. Kd2 {[%clk 0:00:46.9]} 55...
Bg4 {[%clk 0:00:19.9]} 56. Rb7 {[%clk 0:00:46.2]} 56... Ke6 {[%clk 0:00:19.8]}
57. Rb6 {[%clk 0:00:45]} 57... Bf3 {[%clk 0:00:19.6]} 58. Bg1 {[%clk 0:00:45.6]}
58... Bd5 {[%clk 0:00:17.2]} 59. Bxc5 {[%clk 0:00:46.5]} 59... Ke5 {[%clk
0:00:17.2]} 60. Bf2 {[%clk 0:00:48.2]} 60... Bf3 {[%clk 0:00:15.1]} 61. Ra6
{[%clk 0:00:44.8]} 61... Ke6 {[%clk 0:00:16.3]} 62. Ra7 {[%clk 0:00:46.7]} 62...
Bd5 {[%clk 0:00:17]} 63. Kc3 {[%clk 0:00:48.5]} 63... Bf3 {[%clk 0:00:18]} 64.
Bg1 {[%clk 0:00:49.5]} 64... Bd5 {[%clk 0:00:19.4]} 65. Bh2 {[%clk 0:00:49.5]}
65... Bf3 {[%clk 0:00:16.8]} 66. Kb4 {[%clk 0:00:51.1]} 66... Be2 {[%clk
0:00:16.1]} 67. Kc3 {[%clk 0:00:49.7]} 67... Bf1 {[%clk 0:00:16]} 68. Ra8 {[%clk
0:00:48.6]} 68... Bg2 {[%clk 0:00:14.9]} 69. Re8+ {[%clk 0:00:44.5]} 69... Kd7
{[%clk 0:00:15.7]} 70. Re2 {[%clk 0:00:46.4]} 70... Bd5 {[%clk 0:00:15.7]} 71.
Rf2 {[%clk 0:00:48.3]} 71... Ke6 {[%clk 0:00:16.6]} 72. Kb4 {[%clk 0:00:47.1]}
72... Bc6 {[%clk 0:00:12.5]} 73. Ka5 {[%clk 0:00:45.9]} 73... Nd4 {[%clk
0:00:08.1]} 74. Kb6 {[%clk 0:00:46.2]} 74... Bf3 {[%clk 0:00:06.4]} 75. Bg1
{[%clk 0:00:40.4]} 75... Be2 {[%clk 0:00:05.1]} 76. Rh2 {[%clk 0:00:36.5]} 76...
Nf3 {[%clk 0:00:05.1]} 77. Rxe2+ {[%clk 0:00:37.4]} 77... Kd5 {[%clk 0:00:06]}
78. Bf2 {[%clk 0:00:37.8]} 78... Ne5 {[%clk 0:00:06.3]} 79. d4 {[%clk
0:00:35.8]} 79... Nc4+ {[%clk 0:00:05.5]} 80. Kc7 {[%clk 0:00:36.9]} 80... f5
{[%clk 0:00:06.4]} 81. Bg3 {[%clk 0:00:31.5]} 81... Na5 {[%clk 0:00:03.7]} 82.
Bxd6 {[%clk 0:00:30.7]} 82... Nb3 {[%clk 0:00:04.9]} 83. Re5+ {[%clk 0:00:30.8]}
83... Kxd4 {[%clk 0:00:04.6]} 84. Rxf5 {[%clk 0:00:32.7]} 84... Ke4 {[%clk
0:00:04.1]} 85. Rh5 {[%clk 0:00:33.1]} 85... Nd4 {[%clk 0:00:04.9]} 86. Re5+
{[%clk 0:00:29.9]} 86... Kd3 {[%clk 0:00:03]} 87. Kb6 {[%clk 0:00:31.8]} 87...
Kc4 {[%clk 0:00:03.7]} 88. Bc5 {[%clk 0:00:30.4]} 88... Nb3 {[%clk 0:00:04.1]}
89. Re1 {[%clk 0:00:26.8]} 89... Nd2 {[%clk 0:00:03.2]} 90. Kc6 {[%clk
0:00:25.5]} 90... Nf3 {[%clk 0:00:02.8]} 91. Re4+ {[%clk 0:00:25.3]} 91... Kd3
{[%clk 0:00:03.8]} 92. Re3+ {[%clk 0:00:26.7]} 1-0

[Event "*** Titled Tuesday Blitz"]
[Site "Chess.com"]
[Date "2018.04.03"]
[Round "3"]
[White "Kislov_Oleg"]
[Black "GameOverBro"]
[Result "1/2-1/2"]
[WhiteElo "2257"]
[BlackElo "2391"]
[TimeControl "180+2"]
[EndTime "13:42:40 PDT"]
[Termination "Game drawn - insufficient material"]

1. e4 {[%clk 0:03:01.9]} 1... c5 {[%clk 0:02:59.8]} 2. Nf3 {[%clk 0:03:02.5]}
2... Nc6 {[%clk 0:02:59.6]} 3. c3 {[%clk 0:03:03.6]} 3... d5 {[%clk 0:02:59.9]}
4. exd5 {[%clk 0:03:04.2]} 4... Qxd5 {[%clk 0:03:01.8]} 5. d4 {[%clk 0:03:04.2]}
5... Bg4 {[%clk 0:03:01.6]} 6. Be2 {[%clk 0:03:04.3]} 6... cxd4 {[%clk
0:03:02.5]} 7. cxd4 {[%clk 0:03:05.7]} 7... e6 {[%clk 0:03:01.6]} 8. Nc3 {[%clk
0:03:06.5]} 8... Qa5 {[%clk 0:03:02.1]} 9. O-O {[%clk 0:03:06.8]} 9... Nf6
{[%clk 0:03:01.8]} 10. h3 {[%clk 0:03:06.2]} 10... Bh5 {[%clk 0:03:01.9]} 11.
Qb3 {[%clk 0:03:02.8]} 11... Qb4 {[%clk 0:03:02.9]} 12. Qxb4 {[%clk 0:02:59.5]}
12... Nxb4 {[%clk 0:03:04.7]} 13. Bb5+ {[%clk 0:03:00.5]} 13... Kd8 {[%clk
0:02:52.7]} 14. Ne5 {[%clk 0:02:59]} 14... Bd6 {[%clk 0:02:42]} 15. Bf4 {[%clk
0:02:56.9]} 15... Ke7 {[%clk 0:02:34.3]} 16. Rac1 {[%clk 0:02:44.6]} 16... a6
{[%clk 0:02:32.2]} 17. Ba4 {[%clk 0:02:40.5]} 17... Rac8 {[%clk 0:02:31.2]} 18.
Bb3 {[%clk 0:02:32]} 18... Nfd5 {[%clk 0:02:24.9]} 19. Nxd5+ {[%clk 0:02:26.7]}
19... Nxd5 {[%clk 0:02:24.7]} 20. Bxd5 {[%clk 0:02:18.1]} 20... Rxc1 {[%clk
0:02:23.6]} 21. Rxc1 {[%clk 0:02:14]} 21... exd5 {[%clk 0:02:24.8]} 22. Nd3
{[%clk 0:02:04.3]} 22... Bg6 {[%clk 0:02:17.1]} 23. Bxd6+ {[%clk 0:02:02.4]}
23... Kxd6 {[%clk 0:02:18.9]} 24. Nf4 {[%clk 0:02:03.1]} 24... Re8 {[%clk
0:02:13.7]} 25. f3 {[%clk 0:02:02.1]} 25... f6 {[%clk 0:01:58.4]} 26. Kf2 {[%clk
0:01:51.5]} 26... Bf5 {[%clk 0:01:58.4]} 27. g4 {[%clk 0:01:50.9]} 27... Bd7
{[%clk 0:01:57.5]} 28. Rc5 {[%clk 0:01:41.4]} 28... Bc6 {[%clk 0:01:58.1]} 29.
h4 {[%clk 0:01:28.3]} 29... b6 {[%clk 0:01:52.3]} 30. Rc3 {[%clk 0:01:28]} 30...
a5 {[%clk 0:01:51.5]} 31. Nh5 {[%clk 0:01:26.6]} 31... Re7 {[%clk 0:01:50.3]}
32. Re3 {[%clk 0:01:27.5]} 32... Rc7 {[%clk 0:01:48.9]} 33. Ng3 {[%clk 0:01:14]}
33... g6 {[%clk 0:01:47.2]} 34. g5 {[%clk 0:01:09.6]} 34... Rf7 {[%clk
0:01:40.2]} 35. Rb3 {[%clk 0:00:52.9]} 35... b5 {[%clk 0:01:40.5]} 36. Rc3
{[%clk 0:00:47]} 36... b4 {[%clk 0:01:34.2]} 37. Rc5 {[%clk 0:00:47.1]} 37... a4
{[%clk 0:01:35.1]} 38. Ne2 {[%clk 0:00:41.8]} 38... h6 {[%clk 0:01:27.7]} 39.
gxh6 {[%clk 0:00:35.7]} 39... Rh7 {[%clk 0:01:28.6]} 40. Nf4 {[%clk 0:00:35.5]}
40... Rxh6 {[%clk 0:01:28.9]} 41. Kg3 {[%clk 0:00:35.5]} 41... g5 {[%clk
0:01:29.4]} 42. hxg5 {[%clk 0:00:35.1]} 42... fxg5 {[%clk 0:01:31.3]} 43. Nh3
{[%clk 0:00:36.1]} 43... Rh4 {[%clk 0:01:27.3]} 44. Nxg5 {[%clk 0:00:31.7]}
44... Rxd4 {[%clk 0:01:28.7]} 45. Rc2 {[%clk 0:00:31.5]} 45... b3 {[%clk
0:01:23.9]} 46. axb3 {[%clk 0:00:31.9]} 46... axb3 {[%clk 0:01:25.8]} 47. Rc3
{[%clk 0:00:32.9]} 47... Ba4 {[%clk 0:01:23.1]} 48. Rc8 {[%clk 0:00:20.6]} 48...
Rd2 {[%clk 0:01:22.9]} 49. Rd8+ {[%clk 0:00:19.6]} 49... Ke7 {[%clk 0:01:18.8]}
50. Ne4 {[%clk 0:00:17.4]} 50... Rxb2 {[%clk 0:01:14.5]} 51. Rxd5 {[%clk
0:00:18.3]} 51... Bc6 {[%clk 0:01:11.6]} 52. Rd3 {[%clk 0:00:16.6]} 52... Bb5
{[%clk 0:00:54.5]} 53. Re3 {[%clk 0:00:15.3]} 53... Kf8 {[%clk 0:00:47.6]} 54.
Nc5 {[%clk 0:00:14.3]} 54... Bc4 {[%clk 0:00:48.5]} 55. Rc3 {[%clk 0:00:12.3]}
55... Bf7 {[%clk 0:00:48.1]} 56. Kf4 {[%clk 0:00:12.5]} 56... Rb1 {[%clk
0:00:49.3]} 57. Na4 {[%clk 0:00:11.4]} 57... Ra1 {[%clk 0:00:46.1]} 58. Nb2
{[%clk 0:00:09]} 58... Ra2 {[%clk 0:00:46.8]} 59. Nd3 {[%clk 0:00:09.5]} 59...
b2 {[%clk 0:00:46.9]} 60. Nxb2 {[%clk 0:00:10.5]} 60... Rxb2 {[%clk 0:00:47.8]}
61. Rc8+ {[%clk 0:00:12]} 61... Kg7 {[%clk 0:00:48.4]} 62. Rc7 {[%clk
0:00:13.4]} 62... Rb4+ {[%clk 0:00:49.3]} 63. Kg3 {[%clk 0:00:13.8]} 63... Kf6
{[%clk 0:00:49.9]} 64. Rc6+ {[%clk 0:00:15.1]} 64... Ke5 {[%clk 0:00:50.6]} 65.
Rc5+ {[%clk 0:00:16.3]} 65... Bd5 {[%clk 0:00:50.7]} 66. Rc8 {[%clk 0:00:16.2]}
66... Rb3 {[%clk 0:00:51.2]} 67. Rf8 {[%clk 0:00:17.2]} 67... Be6 {[%clk
0:00:51.4]} 68. Re8 {[%clk 0:00:17.8]} 68... Kf6 {[%clk 0:00:51.1]} 69. Rf8+
{[%clk 0:00:18.8]} 69... Kg5 {[%clk 0:00:51.3]} 70. Re8 {[%clk 0:00:18.7]} 70...
Kf6 {[%clk 0:00:51.8]} 71. Rf8+ {[%clk 0:00:19.9]} 71... Ke7 {[%clk 0:00:52.7]}
72. Rf4 {[%clk 0:00:19.9]} 72... Bd5 {[%clk 0:00:53.1]} 73. Rf5 {[%clk
0:00:19.3]} 73... Ke6 {[%clk 0:00:53.7]} 74. Rf8 {[%clk 0:00:19.8]} 74... Rb1
{[%clk 0:00:54.7]} 75. Kf4 {[%clk 0:00:18.2]} 75... Rb4+ {[%clk 0:00:55.5]} 76.
Kg3 {[%clk 0:00:19.3]} 76... Ke5 {[%clk 0:00:56.9]} 77. Re8+ {[%clk 0:00:20.1]}
77... Be6 {[%clk 0:00:58.4]} 78. Rf8 {[%clk 0:00:21.1]} 78... Rb1 {[%clk
0:00:59.6]} 79. Re8 {[%clk 0:00:21.5]} 79... Rg1+ {[%clk 0:01:00.1]} 80. Kf2
{[%clk 0:00:22.3]} 80... Rg7 {[%clk 0:01:00.4]} 81. Rf8 {[%clk 0:00:23]} 81...
Rh7 {[%clk 0:00:59.8]} 82. Ke3 {[%clk 0:00:22.3]} 82... Bf5 {[%clk 0:01:00]} 83.
Re8+ {[%clk 0:00:23.2]} 83... Be6 {[%clk 0:01:01.1]} 84. Kf2 {[%clk 0:00:23.7]}
84... Rf7 {[%clk 0:01:00.1]} 85. Ke3 {[%clk 0:00:24.5]} 85... Kf5 {[%clk
0:01:00.8]} 86. Rb8 {[%clk 0:00:24.2]} 86... Bd5 {[%clk 0:01:01.4]} 87. Rb5
{[%clk 0:00:23.8]} 87... Ke5 {[%clk 0:01:02.5]} 88. f4+ {[%clk 0:00:24.6]} 88...
Kd6 {[%clk 0:01:03.1]} 89. Rb6+ {[%clk 0:00:24.3]} 89... Kc5 {[%clk 0:01:04]}
90. Rb8 {[%clk 0:00:22.1]} 90... Re7+ {[%clk 0:01:04.5]} 91. Kf2 {[%clk
0:00:23.2]} 91... Kd4 {[%clk 0:01:05.7]} 92. Rd8 {[%clk 0:00:22.2]} 92... Ke4
{[%clk 0:01:04.5]} 93. Kg3 {[%clk 0:00:23.4]} 93... Rg7+ {[%clk 0:01:05.3]} 94.
Kf2 {[%clk 0:00:24.6]} 94... Be6 {[%clk 0:01:02.7]} 95. Rf8 {[%clk 0:00:25.6]}
95... Bf5 {[%clk 0:01:02.3]} 96. Re8+ {[%clk 0:00:19.8]} 96... Kxf4 {[%clk
0:01:03.4]} 97. Ke2 {[%clk 0:00:18.8]} 97... Ra7 {[%clk 0:01:04]} 98. Kd2 {[%clk
0:00:18.7]} 98... Ra3 {[%clk 0:01:05]} 99. Re7 {[%clk 0:00:19]} 99... Be4 {[%clk
0:01:05.6]} 100. Rf7+ {[%clk 0:00:19.1]} 100... Ke5 {[%clk 0:01:07.1]} 101. Re7+
{[%clk 0:00:19.4]} 101... Kd4 {[%clk 0:01:08.6]} 102. Re8 {[%clk 0:00:17.8]}
102... Ra2+ {[%clk 0:01:09.6]} 103. Kc1 {[%clk 0:00:18.7]} 103... Bd3 {[%clk
0:01:08.8]} 104. Rd8+ {[%clk 0:00:18]} 104... Kc3 {[%clk 0:01:10.1]} 105. Rc8+
{[%clk 0:00:10.5]} 105... Bc4 {[%clk 0:01:11.4]} 106. Rb8 {[%clk 0:00:07.5]}
106... Ra1+ {[%clk 0:01:10.1]} 107. Rb1 {[%clk 0:00:07.3]} 107... Ra6 {[%clk
0:01:11.4]} 108. Rb8 {[%clk 0:00:07.2]} 108... Rh6 {[%clk 0:01:12.8]} 109. Rd8
{[%clk 0:00:07.9]} 109... Rh1+ {[%clk 0:01:12.7]} 110. Rd1 {[%clk 0:00:08.5]}
110... Rh2 {[%clk 0:01:14.1]} 111. Rd8 {[%clk 0:00:09.3]} 111... Rg2 {[%clk
0:01:14.5]} 112. Rd7 {[%clk 0:00:10]} 112... Rc2+ {[%clk 0:01:14.7]} 113. Kd1
{[%clk 0:00:09.1]} 113... Rf2 {[%clk 0:01:12.5]} 114. Kc1 {[%clk 0:00:09.8]}
114... Ra2 {[%clk 0:01:06.1]} 115. Rb7 {[%clk 0:00:09.7]} 115... Rc2+ {[%clk
0:01:06.9]} 116. Kd1 {[%clk 0:00:10.2]} 116... Rf2 {[%clk 0:01:05.9]} 117. Re7
{[%clk 0:00:11.1]} 117... Ra2 {[%clk 0:01:02.6]} 118. Ke1 {[%clk 0:00:09.9]}
118... Bd5 {[%clk 0:00:56]} 119. Re8 {[%clk 0:00:09.3]} 119... Kd3 {[%clk
0:00:56.1]} 120. Rd8 {[%clk 0:00:08.5]} 120... Ke4 {[%clk 0:00:56]} 121. Kd1
{[%clk 0:00:08.6]} 121... Bc4 {[%clk 0:00:51.9]} 122. Re8+ {[%clk 0:00:09.4]}
122... Kd3 {[%clk 0:00:52.7]} 123. Rd8+ {[%clk 0:00:10.7]} 123... Kc3 {[%clk
0:00:53.9]} 124. Ke1 {[%clk 0:00:11.7]} 124... Ra7 {[%clk 0:00:53.2]} 125. Kf2
{[%clk 0:00:12.3]} 125... Rf7+ {[%clk 0:00:54.3]} 126. Ke3 {[%clk 0:00:12]}
126... Re7+ {[%clk 0:00:54.6]} 127. Kf4 {[%clk 0:00:12.9]} 127... Bd3 {[%clk
0:00:55.2]} 128. Rd6 {[%clk 0:00:13]} 128... Re4+ {[%clk 0:00:54.2]} 129. Kf3
{[%clk 0:00:13.4]} 129... Rd4 {[%clk 0:00:53.3]} 130. Rxd4 {[%clk 0:00:13.9]}
130... Kxd4 {[%clk 0:00:54.5]} 1/2-1/2

[Event "*** Titled Tuesday Blitz"]
[Site "Chess.com"]
[Date "2018.04.03"]
[Round "4"]
[White "HanSchut"]
[Black "yobdc"]
[Result "1/2-1/2"]
[WhiteElo "2207"]
[BlackElo "2096"]
[TimeControl "180+2"]
[EndTime "13:45:44 PDT"]
[Termination "Game drawn by agreement"]

1. e4 {[%clk 0:03:00.7]} 1... e5 {[%clk 0:03:00.7]} 2. Nf3 {[%clk 0:03:01.4]}
2... Nc6 {[%clk 0:03:00.8]} 3. Bc4 {[%clk 0:03:02.9]} 3... Bc5 {[%clk
0:03:00.3]} 4. b4 {[%clk 0:03:03.3]} 4... Bxb4 {[%clk 0:03:00.3]} 5. c3 {[%clk
0:03:04.6]} 5... Be7 {[%clk 0:02:59.6]} 6. d4 {[%clk 0:03:05.4]} 6... Na5 {[%clk
0:02:55.7]} 7. Be2 {[%clk 0:03:05.4]} 7... exd4 {[%clk 0:02:53.4]} 8. Qxd4
{[%clk 0:03:07.3]} 8... d5 {[%clk 0:02:46.8]} 9. exd5 {[%clk 0:02:56.6]} 9...
Bf6 {[%clk 0:02:47.2]} 10. Qa4+ {[%clk 0:02:36.8]} 10... c6 {[%clk 0:02:47.7]}
11. dxc6 {[%clk 0:02:28.7]} 11... Nxc6 {[%clk 0:02:47.5]} 12. O-O {[%clk
0:02:29.1]} 12... Ne7 {[%clk 0:02:46.4]} 13. Rd1 {[%clk 0:02:22.2]} 13... Qa5
{[%clk 0:02:43.7]} 1/2-1/2

[Event "*** Titled Tuesday Blitz"]
[Site "Chess.com"]
[Date "2018.04.03"]
[Round "4"]
[White "XDPS"]
[Black "Cecile-Haussernot"]
[Result "1-0"]
[WhiteElo "2574"]
[BlackElo "2311"]
[TimeControl "180+2"]
[EndTime "13:46:27 PDT"]
[Termination "XDPS won by checkmate"]

1. d4 {[%clk 0:03:01.9]} 1... Nf6 {[%clk 0:02:59.4]} 2. Nf3 {[%clk 0:02:48.8]}
2... e6 {[%clk 0:02:59.5]} 3. e3 {[%clk 0:02:49.6]} 3... c5 {[%clk 0:02:59.5]}
4. Bd3 {[%clk 0:02:47.7]} 4... d5 {[%clk 0:02:57.7]} 5. O-O {[%clk 0:02:47.8]}
5... Nc6 {[%clk 0:02:58.1]} 6. c4 {[%clk 0:02:48.7]} 6... Be7 {[%clk 0:02:56.7]}
7. Nc3 {[%clk 0:02:48.8]} 7... O-O {[%clk 0:02:56.1]} 8. cxd5 {[%clk 0:02:48.4]}
8... exd5 {[%clk 0:02:55.3]} 9. dxc5 {[%clk 0:02:49.3]} 9... Bxc5 {[%clk
0:02:55.6]} 10. h3 {[%clk 0:02:49]} 10... a6 {[%clk 0:02:54.4]} 11. b3 {[%clk
0:02:48.3]} 11... Be6 {[%clk 0:02:49.5]} 12. Bb2 {[%clk 0:02:48.6]} 12... h6
{[%clk 0:02:48.2]} 13. Rc1 {[%clk 0:02:49.2]} 13... Ba7 {[%clk 0:02:48.3]} 14.
Ne2 {[%clk 0:02:49.6]} 14... Rc8 {[%clk 0:02:49.1]} 15. Nf4 {[%clk 0:02:50.2]}
15... Qd6 {[%clk 0:02:47.4]} 16. Bb1 {[%clk 0:02:48.6]} 16... Nd7 {[%clk
0:02:33.2]} 17. Qd3 {[%clk 0:02:45.3]} 17... f5 {[%clk 0:02:33.9]} 18. Nxe6
{[%clk 0:02:18.8]} 18... Qxe6 {[%clk 0:02:33.9]} 19. Rfd1 {[%clk 0:02:18.2]}
19... Nb6 {[%clk 0:02:28.6]} 20. Nd4 {[%clk 0:02:15.7]} 20... Qd7 {[%clk
0:02:07.7]} 21. Nxf5 {[%clk 0:02:10.1]} 21... Nb4 {[%clk 0:02:06.4]} 22. Nxh6+
{[%clk 0:02:09.5]} 22... Kh8 {[%clk 0:02:03.9]} 23. Qh7# {[%clk 0:02:10.4]} 1-0

[Event "*** Titled Tuesday Blitz"]
[Site "Chess.com"]
[Date "2018.04.03"]
[Round "4"]
[White "Zufi1811"]
[Black "pedromartinez91"]
[Result "1/2-1/2"]
[WhiteElo "2453"]
[BlackElo "2373"]
[TimeControl "180+2"]
[EndTime "13:46:32 PDT"]
[Termination "Game drawn by agreement"]

1. e4 {[%clk 0:03:01.9]} 1... e6 {[%clk 0:03:00.2]} 2. d4 {[%clk 0:03:01.5]}
2... d5 {[%clk 0:02:58]} 3. Nc3 {[%clk 0:03:02.8]} 3... Nf6 {[%clk 0:02:57]} 4.
e5 {[%clk 0:03:03.2]} 4... Ne4 {[%clk 0:02:58.3]} 5. Nce2 {[%clk 0:02:56.5]}
5... f6 {[%clk 0:02:56]} 6. f3 {[%clk 0:02:54.4]} 6... Ng5 {[%clk 0:02:56.8]} 7.
f4 {[%clk 0:02:53.3]} 7... Ne4 {[%clk 0:02:56.8]} 8. Nf3 {[%clk 0:02:54.9]} 8...
c5 {[%clk 0:02:56.7]} 9. Ng3 {[%clk 0:02:48.6]} 9... Nc6 {[%clk 0:02:52.3]} 10.
Bd3 {[%clk 0:02:43]} 10... f5 {[%clk 0:02:52.9]} 11. c3 {[%clk 0:02:42.3]} 11...
Be7 {[%clk 0:02:50.8]} 12. Be3 {[%clk 0:02:38.9]} 12... O-O {[%clk 0:02:49.7]}
13. O-O {[%clk 0:02:37.9]} 13... cxd4 {[%clk 0:02:39.6]} 14. cxd4 {[%clk
0:02:37.7]} 14... Nb4 {[%clk 0:02:36.4]} 15. Bb1 {[%clk 0:02:36]} 15... b6
{[%clk 0:02:29.2]} 16. a3 {[%clk 0:02:35.8]} 16... Nc6 {[%clk 0:02:29.9]} 17.
Bd3 {[%clk 0:02:37.2]} 17... Na5 {[%clk 0:02:27]} 18. Rc1 {[%clk 0:02:34.4]}
18... Bb7 {[%clk 0:02:25.3]} 19. Qe2 {[%clk 0:02:31.5]} 19... Rc8 {[%clk
0:02:22.2]} 20. Rc2 {[%clk 0:02:16.5]} 20... Rxc2 {[%clk 0:02:08.1]} 21. Qxc2
{[%clk 0:02:18.4]} 21... Qc8 {[%clk 0:02:07.4]} 22. Rc1 {[%clk 0:02:13.8]} 22...
Qxc2 {[%clk 0:02:07.2]} 23. Rxc2 {[%clk 0:02:15.7]} 23... Rc8 {[%clk 0:02:06.6]}
1/2-1/2

[Event "*** Titled Tuesday Blitz"]
[Site "Chess.com"]
[Date "2018.04.03"]
[Round "4"]
[White "dimke2802"]
[Black "RitvarsReimanis"]
[Result "1/2-1/2"]
[WhiteElo "2323"]
[BlackElo "2387"]
[TimeControl "180+2"]
[EndTime "13:47:04 PDT"]
[Termination "Game drawn by agreement"]

1. d4 {[%clk 0:03:01.4]} 1... Nf6 {[%clk 0:02:59.3]} 2. Nf3 {[%clk 0:03:01.4]}
2... e6 {[%clk 0:03:00.2]} 3. c4 {[%clk 0:03:01.9]} 3... d5 {[%clk 0:02:59.4]}
4. Nc3 {[%clk 0:03:02.5]} 4... Be7 {[%clk 0:03:00.5]} 5. Bg5 {[%clk 0:03:02.5]}
5... O-O {[%clk 0:03:01.2]} 6. e3 {[%clk 0:03:03.4]} 6... Re8 {[%clk 0:02:49.8]}
7. Rc1 {[%clk 0:02:58.2]} 7... c6 {[%clk 0:02:49.9]} 8. Bd3 {[%clk 0:02:58.2]}
8... Nbd7 {[%clk 0:02:50.9]} 9. O-O {[%clk 0:02:58.4]} 9... h6 {[%clk
0:02:38.8]} 10. Bh4 {[%clk 0:02:58.7]} 10... dxc4 {[%clk 0:02:34]} 11. Bxc4
{[%clk 0:02:59.2]} 11... Nd5 {[%clk 0:02:35.1]} 12. Bxe7 {[%clk 0:02:55]} 12...
Qxe7 {[%clk 0:02:35.1]} 13. Ne4 {[%clk 0:02:55.9]} 13... N5b6 {[%clk 0:02:32.6]}
14. Bb3 {[%clk 0:02:53.6]} 14... e5 {[%clk 0:02:33.5]} 15. dxe5 {[%clk
0:02:40.5]} 15... Nxe5 {[%clk 0:02:33.9]} 16. Nd6 {[%clk 0:02:21]} 16... Nxf3+
{[%clk 0:02:12.3]} 17. Qxf3 {[%clk 0:02:13.1]} 17... Rf8 {[%clk 0:02:08.9]} 18.
Rfd1 {[%clk 0:02:01]} 18... Be6 {[%clk 0:02:05]} 1/2-1/2

[Event "*** Titled Tuesday Blitz"]
[Site "Chess.com"]
[Date "2018.04.03"]
[Round "4"]
[White "petrpalachev"]
[Black "simplerXiao"]
[Result "1-0"]
[WhiteElo "2589"]
[BlackElo "2460"]
[TimeControl "180+2"]
[EndTime "13:47:35 PDT"]
[Termination "petrpalachev won by resignation"]

1. d4 {[%clk 0:03:01.9]} 1... f5 {[%clk 0:02:55.1]} 2. g3 {[%clk 0:03:01.2]}
2... Nf6 {[%clk 0:02:55.1]} 3. c4 {[%clk 0:03:01.3]} 3... g6 {[%clk 0:02:51]} 4.
Bg2 {[%clk 0:03:01.6]} 4... Bg7 {[%clk 0:02:52.4]} 5. Nc3 {[%clk 0:03:00.7]}
5... O-O {[%clk 0:02:53.8]} 6. Nf3 {[%clk 0:03:01.4]} 6... d6 {[%clk 0:02:54.2]}
7. O-O {[%clk 0:03:02.4]} 7... c6 {[%clk 0:02:55.3]} 8. b4 {[%clk 0:02:50.5]}
8... a5 {[%clk 0:02:53.2]} 9. b5 {[%clk 0:02:49.1]} 9... Qe8 {[%clk 0:02:52.7]}
10. a4 {[%clk 0:02:33.8]} 10... Qf7 {[%clk 0:02:41.2]} 11. Qb3 {[%clk
0:02:23.5]} 11... h6 {[%clk 0:02:06.4]} 12. Rd1 {[%clk 0:02:16.9]} 12... Ne4
{[%clk 0:02:04.7]} 13. Bb2 {[%clk 0:02:17.2]} 13... e5 {[%clk 0:01:23]} 14. dxe5
{[%clk 0:02:11.6]} 14... dxe5 {[%clk 0:01:22.9]} 15. Ba3 {[%clk 0:02:11.6]}
15... Nxc3 {[%clk 0:01:20.4]} 16. Qxc3 {[%clk 0:02:13.5]} 16... Re8 {[%clk
0:01:20]} 17. e4 {[%clk 0:02:11.5]} 17... fxe4 {[%clk 0:01:18.6]} 18. Nd2 {[%clk
0:02:12.3]} 18... e3 {[%clk 0:01:14.4]} 19. Qxe3 {[%clk 0:02:13]} 19... Bf5
{[%clk 0:01:09.7]} 20. Ne4 {[%clk 0:02:11.7]} 20... Bxe4 {[%clk 0:01:01.3]} 21.
Bxe4 {[%clk 0:02:13.6]} 21... Nd7 {[%clk 0:00:59.7]} 22. bxc6 {[%clk 0:02:14]}
22... bxc6 {[%clk 0:01:00.5]} 23. Bxc6 {[%clk 0:02:15.4]} 23... Rad8 {[%clk
0:01:01.9]} 24. Bd5 {[%clk 0:02:16.4]} 1-0